fUSD/lending_fUSD_20251222
["ID","MTS","AMOUNT","RATE_DAILY","PERIOD"]
[399517299,1766427046144,-624.95291617,0.00022,2]
[399517300,1766427046154,-152.0,0.00022,2]
[399517301,1766427046163,-172.18,0.00022,2]
[399517302,1766427046171,-373.07297731,0.00022092,2]
[399517303,1766427046180,-666.72878,0.00022094,2]
[399517304,1766427046189,-775.47832561,0.00022094,2]
[399517305,1766427046198,-621.78829552,0.00022094,2]
[399517306,1766427046207,-301.1433787,0.00022096,2]
[399517307,1766427046216,-825.65138265,0.00022096,2]
[399517308,1766427046225,-880.4937002,0.00022122,2]
[399517309,1766427046235,-1000.0,0.00022192,30]
[399517310,1766427046244,-183.96,0.00022385,2]
[399517311,1766427046253,-630.0,0.000225,30]
[399517312,1766427046262,-24470.083785,0.000226,5]
[399517313,1766427046271,-167.44430512,0.000226,2]
[399517314,1766427046281,-219.61849206,0.000226,2]
[399517315,1766427046290,-165.5,0.00022603,2]
[399517317,1766427046299,-154.25,0.00022634,2]
[399517319,1766427046309,-612.0,0.00022638,2]
[399517320,1766427046318,-1609.0,0.00022638,2]
[399517322,1766427046326,-518.0,0.00022638,2]
[399517324,1766427046335,-1262.0,0.00022638,2]
[399517326,1766427046344,-2429.0,0.00022638,2]
[399517327,1766427046353,-564.0,0.00022638,2]
[399517330,1766427046362,-806.0,0.00023,2]
[399517333,1766427046371,-400.0,0.00023,2]
[399517336,1766427046379,-350.9914312,0.0002301,120]
[399517339,1766427046388,-1326.0,0.000234,2]
[399517342,1766427046397,-386.87667747,0.00023461,2]
[399517344,1766427046406,-231.28369723,0.00023608,2]
[399517346,1766427046416,-14516.0553614,0.00023764,2]
[399517347,1766427046425,-1000.0,0.00023868,2]
[399517348,1766427046434,-1230.51917613,0.00024,2]
[399517349,1766427046442,-3645.3215772,0.00024211,2]
[399517350,1766427046451,-880.4937002,0.00024337,2]
[399517351,1766427046460,-172.18,0.00024585,2]
[399517352,1766427046469,-151.66355273,0.00024594,2]
[399517353,1766427046478,-3238.9697575,0.00024625,2]
[399517354,1766427046487,-162.81323493,0.00024658,2]
[399517355,1766427046496,-157.0,0.00024658,2]
[399517356,1766427046504,-157.0,0.00024658,2]
[399517357,1766427046513,-1000.0,0.00024658,2]
[399517358,1766427046522,-1041.6,0.00024658,2]
[399517359,1766427046531,-500.0,0.00024773,2]
[399517360,1766427046540,-500.0,0.00024773,2]
[399517361,1766427046549,-500.0,0.00024773,2]
[399517362,1766427046562,-500.0,0.00024773,2]
[399517363,1766427046573,-514.96485499,0.00024773,2]
[399517364,1766427046581,-500.0,0.00024773,2]
[399517365,1766427046591,-615.67631493,0.00024773,2]
[399517366,1766427046600,-367.4376246,0.00024773,2]
[399517367,1766427046609,-500.0,0.00024773,2]
[399517368,1766427046619,-500.0,0.00024773,2]
[399517369,1766427046630,-500.0,0.00024773,2]
[399517370,1766427046639,-500.0,0.00024773,2]
[399517371,1766427046648,-500.0,0.00024773,2]
[399517372,1766427046656,-500.0,0.00024773,2]
[399517373,1766427046665,-500.0,0.00024773,2]
[399517374,1766427046674,-500.0,0.00024773,2]
[399517375,1766427046683,-500.0,0.00024773,2]
[399517376,1766427046692,-500.0,0.00024773,2]
[399517377,1766427046700,-207.06138535,0.00024773,2]
[399517378,1766427046709,-500.0,0.00024773,2]
[399517379,1766427046719,-500.0,0.00024773,2]
[399517380,1766427046729,-500.0,0.00024773,2]
[399517381,1766427046738,-500.0,0.00024773,2]
[399517382,1766427046747,-500.0,0.00024773,2]
[399517383,1766427046756,-500.0,0.00024773,2]
[399517384,1766427046765,-500.0,0.00024773,2]
[399517385,1766427046775,-500.0,0.00024773,2]
[399517386,1766427046783,-500.0,0.00024773,2]
[399517387,1766427046793,-500.0,0.00024773,2]
[399517388,1766427046803,-500.0,0.00024773,2]
[399517389,1766427046812,-500.0,0.00024773,2]
[399517390,1766427046822,-500.0,0.00024773,2]
[399517391,1766427046832,-500.0,0.00024773,2]
[399517392,1766427046841,-500.0,0.00024773,2]
[399517393,1766427046851,-500.0,0.00024773,2]
[399517394,1766427046860,-137207.68336605,0.000248,3]
[399517400,1766427047369,-104876.70263455,0.000248,3]
[399517401,1766427048181,-500.0,0.00016438,2]
[399517402,1766427048192,-393.16,0.00016438,2]
[399517403,1766427048204,-106.84,0.00016438,2]
[399517404,1766427048216,-500.0,0.00016438,2]
[399517405,1766427048226,-188.06427438,0.00016438,2]
[399517406,1766427048236,-20784.19925194,0.000248,3]
[399517407,1766427048248,-867.26068256,0.000248,3]
[399517408,1766427048276,-4368.7103812,0.000248,3]
[399517409,1766427048288,-287100.5211757,0.000248,3]
[399517410,1766427048299,-401.19111454,0.0002483,2]
[399517411,1766427048312,-691.39774486,0.00024833,2]
[399517412,1766427048322,-804.17102365,0.00024833,2]
[399517413,1766427048332,-644.79446246,0.00024833,2]
[399517414,1766427048342,-209.45677973,0.00024873,2]
[399517415,1766427048351,-2000.0,0.000249,2]
[399517416,1766427048361,-250.0,0.00025,7]
[399517417,1766427048372,-320.12427134,0.00025,3]
[399517418,1766427048383,-150.0,0.00025,2]
[399517419,1766427048393,-450.0,0.00025,2]
[399517420,1766427048403,-500.0,0.00025233,2]
[399517421,1766427048414,-647.78915262,0.00025321,2]
[399517422,1766427048425,-1000.0,0.00025321,2]
[399517423,1766427048434,-1000.0,0.00025321,2]
[399517424,1766427048444,-412.15170783,0.00025321,2]
[399517425,1766427048454,-839.26992964,0.00025321,2]
[399517426,1766427048463,-711.14623413,0.00025321,2]
[399517427,1766427048473,-558.66625323,0.00025321,2]
[399517428,1766427048483,-1001.19540644,0.00025321,2]
[399517429,1766427048493,-1000.0,0.00025321,2]
[399517430,1766427048502,-1000.0,0.00025321,2]
[399517431,1766427048512,-1000.0,0.00025321,2]
[399517432,1766427048522,-1000.0,0.00025321,2]
[399517433,1766427048531,-1000.0,0.00025321,2]
[399517434,1766427048541,-1000.0,0.00025321,2]
[399517435,1766427048554,-1000.0,0.00025321,2]
[399517436,1766427048568,-1000.0,0.00025321,2]
[399517437,1766427048578,-1000.0,0.00025321,2]
[399517438,1766427048587,-1000.0,0.00025321,2]
[399517439,1766427048599,-597.90123156,0.00025321,2]
[399517440,1766427048609,-1000.0,0.00025321,2]
[399517441,1766427048618,-1000.2916931,0.00025321,2]
[399517442,1766427048629,-16.6607183,0.00025321,2]
[399517443,1766427048642,-331.80984856,0.00025321,2]
[399517444,1766427048652,-1001.39291005,0.00025321,2]
[399517445,1766427048662,-1076.64939629,0.00025321,2]
[399517446,1766427048672,-1000.0,0.00025321,2]
[399517447,1766427048682,-1000.0,0.00025321,2]
[399517448,1766427048692,-1000.0,0.00025321,2]
[399517449,1766427048702,-1000.0,0.00025321,2]
[399517450,1766427048711,-653.58746515,0.00025321,2]
[399517451,1766427049366,-1198.0,0.00016638,2]
[399517452,1766427049377,-500.0,0.00020221,2]
[399517453,1766427049387,-384.94317422,0.00022092,2]
[399517454,1766427049397,-150.0,0.00025,2]
[399517455,1766427049407,-346.41253485,0.00025321,2]
[399517456,1766427049417,-1000.0,0.00025321,2]
[399517457,1766427049427,-612.0,0.00025638,2]
[399517458,1766427049437,-846.186,0.00025638,2]
[399517459,1766427049447,-518.0,0.00025638,2]
[399517460,1766427049457,-1262.0,0.00025638,2]
[399517461,1766427049467,-2429.0,0.00025638,2]
[399517462,1766427049477,-564.0,0.00025638,2]
[399517463,1766427049487,-154.25,0.00025657,2]
[399517464,1766427049497,-931.82821883,0.0002573,2]
[399517465,1766427049507,-1309.77793775,0.00025734,4]
[399517466,1766427049517,-384.47833139,0.00025868,2]
[399517467,1766427049527,-500.0,0.00025868,2]
[399517468,1766427049537,-620.37233285,0.00025868,2]
[399517469,1766427049547,-1501.82577211,0.00025868,2]
[399517470,1766427049562,-398.58667756,0.00025868,2]
[399517471,1766427049572,-1500.0,0.00025868,2]
[399517472,1766427049582,-1000.0,0.00025868,2]
[399517473,1766427049594,-1500.0,0.00025868,2]
[399517474,1766427049604,-501.31913615,0.00025868,2]
[399517475,1766427049614,-1500.0,0.00025868,2]
[399517476,1766427049624,-1107.40591006,0.00025868,2]
[399517477,1766427049637,-501.0574546,0.00025868,2]
[399517478,1766427049647,-1136.7936933,0.00025868,2]
[399517479,1766427049657,-1500.0,0.00025868,2]
[399517480,1766427049668,-1000.0,0.00025868,2]
[399517481,1766427049678,-758.12727716,0.00025868,2]
[399517482,1766427049688,-597.25965313,0.0002599,2]
[399517483,1766427050011,-215.28594639,0.00026,2]
[399517484,1766427050027,-7440.21392185,0.00026,10]
[399517485,1766427050038,-162.04925949,0.00026,2]
[399517486,1766427050048,-150.0,0.00026,2]
[399517487,1766427050058,-1000.0,0.00026037,2]
[399517488,1766427050068,-416.03518578,0.00026199,2]
[399517489,1766427050078,-239.84119403,0.00026347,2]
[399517490,1766427050088,-1326.0,0.000264,2]
[399517491,1766427050098,-154.24,0.00026413,2]
[399517492,1766427050108,-2000.0,0.00026416,2]
[399517493,1766427050119,-2000.0,0.00026416,2]
[399517494,1766427050129,-1166.79362099,0.00026416,2]
[399517495,1766427050139,-1441.67060299,0.00026416,2]
[399517496,1766427050150,-219.61849205,0.00026437,30]
[399517497,1766427050161,-880.4937002,0.00026553,2]
[399517498,1766427050171,-1000.0,0.00026676,2]
[399517499,1766427050180,-2188.2917705,0.00026964,2]
[399517500,1766427050190,-2500.0,0.00026964,2]
[399517501,1766427050200,-250.0,0.00027,2]
[399517502,1766427050209,-1965.8911108,0.00027,14]
[399517503,1766427050219,-1028.18792799,0.00027,2]
[399517504,1766427050229,-530.0,0.00027,2]
[399517505,1766427050241,-200.0,0.00027,2]
[399517506,1766427050253,-464.0,0.00027,7]
[399517507,1766427050264,-500.0,0.00027,2]
[399517508,1766427050274,-3645.3215772,0.00027148,2]
[399517509,1766427050285,-172.18,0.0002717,7]
[399517510,1766427050296,-150.0,0.00027369,2]
[399517511,1766427050306,-319.2,0.00027397,3]
[399517512,1766427050318,-396.4,0.00027397,7]
[399517513,1766427050328,-427.0,0.00027397,3]
[399517514,1766427050338,-498.6,0.00027397,2]
[399517515,1766427050347,-500.0,0.00027397,14]
[399517516,1766427050358,-516.29,0.00027397,2]
[399517517,1766427050369,-1438.65,0.00027397,2]
[399517518,1766427050378,-1041.6,0.00027397,2]
[399517519,1766427050389,-300.0,0.00027397,2]
[399517520,1766427050399,-183.34,0.00027397,10]
[399517521,1766427050409,-500.74282557,0.00027397,5]
[399517522,1766427050419,-158.30770956,0.00027397,5]
[399517523,1766427050429,-159.65649268,0.00027397,5]
[399517524,1766427050439,-150.0,0.00027397,5]
[399517525,1766427050450,-3000.0,0.00027512,5]
[399517526,1766427050461,-431.42848765,0.00027568,2]
[399517527,1766427050472,-716.97946142,0.00027572,2]
[399517528,1766427050484,-833.92535153,0.00027572,2]
[399517529,1766427050495,-668.65185757,0.00027572,2]
[399517530,1766427050505,-464.0,0.00027671,14]
[399517531,1766427050516,-10249.63,0.00027829,2]
[399517532,1766427050526,-643.12323299,0.000279,2]
[399517533,1766427050536,-250.0,0.00027945,5]
[399517534,1766427050547,-200.0,0.00028,2]
[399517535,1766427050561,-3500.0,0.0002806,5]
[399517536,1766427050571,-150.0,0.0002839,5]
[399517537,1766427050581,-165.5,0.00028493,2]
[399517538,1766427050592,-350.0,0.00028493,5]
[399517539,1766427050603,-2000.0,0.000286,2]
[399517540,1766427050613,-4000.0,0.00028608,5]
[399517541,1766427050624,-612.0,0.00028638,2]
[399517542,1766427050635,-2429.0,0.00028638,2]
[399517543,1766427050645,-564.0,0.00028638,2]
[399517544,1766427050655,-1293.55332655,0.00028646,15]
[399517545,1766427050665,-464.0,0.00028767,14]
[399517546,1766427050676,-10016.87316918,0.000288,2]
[399517547,1766427050686,-3330.55273072,0.00028859,2]
[399517548,1766427050696,-167.44430512,0.00028906,30]
[399517549,1766427050707,-805.0,0.00028916,10]
[399517550,1766427050719,-447.3913417,0.00028937,2]
[399517551,1766427050729,-250.0,0.00028938,5]
[399517552,1766427050740,-38891.27895176,0.00029,2]
[399517553,1766427050755,-3474.81960718,0.00029,2]
[399517577,1766428014745,171.79,9.775e-05,2]
[399517606,1766428231819,-250.0,0.00012298,2]
[399517608,1766428231827,-300.0,0.00012298,2]
[399517610,1766428231836,-300.0,0.00012299,2]
[399517612,1766428231845,-164.70775858,0.000123,2]
[399517614,1766428231860,-7.6116154,0.000123,2]
[399517616,1766428231869,-172.31937398,0.000123,2]
[399517617,1766428231879,-282.6638746,0.00012353,2]
[399517618,1766428231887,-282.38149311,0.00012353,2]
[399517619,1766428231898,-300.0,0.00012459,2]
[399517620,1766428231907,-1178.64091969,0.0001246,2]
[399517621,1766428231926,-21.35908031,0.0001246,2]
[399517622,1766428231935,-300.0,0.0001246,2]
[399517623,1766428231945,-1200.0,0.0001246,2]
[399517624,1766428231954,-6536.706,0.00012461,2]
[399517625,1766428231963,-389.568,0.00012461,2]
[399517626,1766428231972,-150.0,0.00012491,2]
[399517627,1766428231982,-562.17614169,0.00012492,2]
[399517628,1766428231991,-28305.691496,0.00012492,2]
[399517629,1766428232001,-150.0,0.00012551,2]
[399517630,1766428232010,-6395.280782,0.00012692,2]
[399517632,1766428232030,-25861.81722283,0.00012692,2]
[399517634,1766428232041,-6683.23199517,0.00012692,2]
[399517636,1766428232050,-28305.69149594,0.00012999,2]
[399517638,1766428232059,-5328.93897617,0.0001305,2]
[399517640,1766428232068,-407.03981682,0.00013504,2]
[399517642,1766428232078,-28305.69149594,0.00013505,2]
[399517644,1766428232087,-300.0,0.00013528,2]
[399517646,1766428232096,-250.0,0.00013528,2]
[399517648,1766428232105,-195.0,0.00013528,2]
[399517650,1766428232114,-300.0,0.00013528,2]
[399517652,1766428232123,-250.0,0.00013528,2]
[399517654,1766428232132,-7534.25665935,0.00013552,2]
[399517656,1766428232141,-255.0,0.0001359,2]
[399517658,1766428232150,-168.0,0.00013671,2]
[399517660,1766428232159,-500.0,0.00013698,2]
[399517662,1766428232168,-500.0,0.00013698,2]
[399517663,1766428232177,-500.0,0.00013698,2]
[399517664,1766428232187,-500.0,0.00013698,2]
[399517665,1766428232197,-500.0,0.00013698,2]
[399517666,1766428232210,-500.0,0.00013698,2]
[399517667,1766428232220,-500.0,0.00013698,2]
[399517668,1766428232230,-500.0,0.00013698,2]
[399517669,1766428232241,-500.0,0.00013698,2]
[399517670,1766428232251,-500.0,0.00013698,2]
[399517671,1766428232261,-500.0,0.00013698,2]
[399517672,1766428232272,-370.97583972,0.00013698,2]
[399517678,1766428237488,-129.02416028,0.00013698,2]
[399517679,1766428237498,-194.84218326,0.00013698,2]
[399517681,1766428237545,-305.15781674,0.00013698,2]
[399517682,1766428237568,-500.0,0.00013698,2]
[399517683,1766428237579,-500.0,0.00013698,2]
[399517684,1766428237588,-327.18979253,0.00013698,2]
[399517685,1766428237598,-500.0,0.00013698,2]
[399517686,1766428237608,-500.0,0.00013698,2]
[399517687,1766428237619,-582.27761239,0.00013698,2]
[399517688,1766428237630,-500.0,0.00013698,2]
[399517689,1766428237639,-515.53085816,0.00013698,2]
[399517690,1766428237651,-500.0,0.00013698,2]
[399517691,1766428237661,-506.0686599,0.00013698,2]
[399517692,1766428237671,-500.0,0.00013698,2]
[399517693,1766428237680,-500.0,0.00013698,2]
[399517694,1766428237689,-500.0,0.00013698,2]
[399517695,1766428237700,-500.0,0.00013698,2]
[399517696,1766428237710,-500.0,0.00013698,2]
[399517697,1766428237719,-500.0,0.00013698,2]
[399517698,1766428237729,-500.0,0.00013698,2]
[399517699,1766428237738,-500.0,0.00013698,2]
[399517700,1766428237747,-500.0,0.00013698,2]
[399517701,1766428237757,-500.0,0.00013698,2]
[399517702,1766428237766,-398.09280795,0.00013698,2]
[399517703,1766428237786,-101.90719205,0.00013698,2]
[399517704,1766428237795,-500.0,0.00013698,2]
[399517705,1766428237805,-718.08,0.00013698,2]
[399517706,1766428237814,-500.0,0.00013698,2]
[399517707,1766428237824,-500.0,0.00013698,2]
[399517708,1766428237833,-502.53521633,0.00013698,2]
[399517709,1766428237843,-483.85040531,0.00013698,2]
[399517710,1766428237863,-16.14959469,0.00013698,2]
[399517711,1766428237873,-500.0,0.00013698,2]
[399517712,1766428237882,-500.0,0.00013698,2]
[399517713,1766428237891,-507.51259236,0.00013698,2]
[399517714,1766428237902,-286.12837513,0.00013698,2]
[399517715,1766428237912,-365.27868297,0.00013698,2]
[399517716,1766428237922,-500.0,0.00013698,2]
[399517717,1766428237932,-500.0,0.00013698,2]
[399517718,1766428237941,-500.0,0.00013698,2]
[399517719,1766428237950,-500.0,0.00013698,2]
[399517720,1766428237960,-500.0,0.00013698,2]
[399517721,1766428237969,-500.0,0.00013698,2]
[399517722,1766428237979,-500.0,0.00013698,2]
[399517723,1766428237989,-500.0,0.00013698,2]
[399517724,1766428237999,-500.0,0.00013698,2]
[399517725,1766428238008,-500.0,0.00013698,2]
[399517726,1766428238017,-500.0,0.00013698,2]
[399517727,1766428238027,-500.0,0.00013698,2]
[399517728,1766428238036,-500.0,0.00013698,2]
[399517729,1766428238045,-500.0,0.00013698,2]
[399517730,1766428238055,-500.0,0.00013698,2]
[399517731,1766428238064,-500.0,0.00013698,2]
[399517732,1766428238074,-500.0,0.00013698,2]
[399517733,1766428238083,-500.0,0.00013698,2]
[399517734,1766428238093,-500.0,0.00013698,2]
[399517735,1766428238102,-500.0,0.00013698,2]
[399517736,1766428238112,-509.67980687,0.00013698,2]
[399517737,1766428238121,-500.0,0.00013698,2]
[399517738,1766428238131,-500.0,0.00013698,2]
[399517739,1766428238140,-500.0,0.00013698,2]
[399517740,1766428238150,-500.0,0.00013698,2]
[399517741,1766428238160,-500.0,0.00013698,2]
[399517742,1766428238170,-500.0,0.00013698,2]
[399517743,1766428238179,-500.0,0.00013698,2]
[399517744,1766428238188,-500.0,0.00013698,2]
[399517745,1766428238198,-465.83516481,0.00013698,2]
[399517757,1766428239829,-21.66018426,0.00013698,2]
[399517758,1766428239839,-850.43,0.00013698,2]
[399517759,1766428239849,-850.43,0.00013698,2]
[399517760,1766428239862,-850.43,0.00013698,2]
[399517761,1766428239871,-850.43,0.00013698,2]
[399517762,1766428239880,-500.0,0.00013698,2]
[399517763,1766428239953,-500.0,0.00013698,2]
[399517764,1766428239963,-500.0,0.00013698,2]
[399517765,1766428239972,-500.0,0.00013698,2]
[399517766,1766428239981,-500.0,0.00013698,2]
[399517767,1766428239991,-500.0,0.00013698,2]
[399517768,1766428240001,-500.0,0.00013698,2]
[399517769,1766428240010,-500.0,0.00013698,2]
[399517770,1766428240020,-500.0,0.00013698,2]
[399517771,1766428240030,-1000.0,0.00013699,2]
[399517772,1766428240039,-661.06,0.00013699,2]
[399517773,1766428240049,-166.66,0.00013699,2]
[399517775,1766428240059,-1680.0,0.00013706,2]
[399517776,1766428240068,-166.66,0.00013836,2]
[399517777,1766428240077,-718.08,0.00013972,2]
[399517778,1766428240086,-166.66,0.00013973,2]
[399517779,1766428240095,-282.38149311,0.00013995,2]
[399517780,1766428240105,-282.38149311,0.00013995,2]
[399517781,1766428240116,-1500.0,0.00014,2]
[399517782,1766428240125,-1050.83828415,0.00014,2]
[399517783,1766428240134,-28305.69149594,0.00014012,2]
[399517784,1766428240143,-282.38149311,0.00014018,2]
[399517785,1766428240153,-282.38149311,0.00014087,2]
[399517786,1766428240163,-166.66,0.0001411,2]
[399517787,1766428240173,-282.38149311,0.00014203,2]
[399517788,1766428240183,-2270.36213635,0.0001421,7]
[399517789,1766428240192,-718.08,0.00014246,2]
[399517790,1766428240202,-166.66,0.00014247,2]
[399517791,1766428240211,-282.38149311,0.00014364,2]
[399517792,1766428240220,-300.0,0.00014372,2]
[399517793,1766428240230,-166.66,0.00014384,2]
[399517794,1766428240240,-10017.7644167,0.0001451,2]
[399517795,1766428240250,-28305.69149594,0.00014518,2]
[399517796,1766428240259,-718.08,0.0001452,2]
[399517797,1766428240268,-282.38149311,0.00014572,2]
[399517798,1766428240278,-259.2,0.00014642,2]
[399517799,1766428240288,-171.79,0.00014662,2]
[399517800,1766428240297,-282.0,0.00014789,2]
[399517801,1766428240307,-718.08,0.00014794,2]
[399517802,1766428240316,-282.38149311,0.00014826,2]
[399517803,1766428240325,-237.44806942,0.00014929,2]
[399517804,1766428240334,-28305.69149594,0.00015025,2]
[399517805,1766428240343,-718.08,0.00015068,2]
[399517806,1766428240352,-2351.0,0.00015077,2]
[399517807,1766428240361,-282.38149311,0.00015127,2]
[399517808,1766428240371,-150.99,0.0001531,2]
[399517809,1766428240380,-9999.99,0.0001531,2]
[399517810,1766428240391,-150.99,0.0001531,2]
[399517811,1766428240400,-733.1,0.0001531,2]
[399517812,1766428240409,-1395.28,0.0001531,2]
[399517813,1766428240419,-2909.88,0.0001531,2]
[399517814,1766428240428,-718.08,0.00015342,2]
[399517815,1766428240437,-28305.69149594,0.00015531,2]
[399517816,1766428240447,-162.19,0.00015555,2]
[399517817,1766428240456,-718.11,0.00015616,2]
[399517818,1766428240466,-634.35081499,0.00015938,2]
[399517819,1766428240476,-2000.0,0.00016,2]
[399517820,1766428240485,-2000.0,0.00016,2]
[399517821,1766428240494,-2000.0,0.00016,2]
[399517822,1766428240503,-2000.0,0.00016,2]
[399517823,1766428240512,-2000.0,0.00016,2]
[399517824,1766428240521,-2000.0,0.00016,2]
[399517825,1766428240531,-508540.3177509,0.00016,4]
[399517826,1766428240540,-28305.69149594,0.00016038,2]
[399517827,1766428240550,-1167.11,0.00016116,2]
[399517828,1766428240558,-5000.00179898,0.000162,5]
[399517829,1766428240567,-200.0,0.0001634,2]
[399517830,1766428240576,-634.35081497,0.00016419,2]
[399517831,1766428240585,-1834.0,0.00016438,2]
[399517832,1766428240594,-500.0,0.00016438,2]
[399517833,1766428240603,-500.0,0.00016438,2]
[399517834,1766428240612,-233.65025085,0.00016438,2]
[399517835,1766428240621,-500.0,0.00016438,2]
[399517836,1766428240631,-500.0,0.00016438,2]
[399517837,1766428240640,-500.0,0.00016438,2]
[399517838,1766428240649,-500.0,0.00016438,2]
[399517839,1766428240658,-500.0,0.00016438,2]
[399517840,1766428240667,-500.0,0.00016438,2]
[399517841,1766428240676,-500.0,0.00016438,2]
[399517842,1766428240685,-500.0,0.00016438,2]
[399517843,1766428240695,-500.0,0.00016438,2]
[399517844,1766428240705,-600.0,0.00016438,2]
[399517845,1766428240715,-235.76832595,0.00016438,2]
[399517846,1766428240724,-250.0,0.00016439,2]
[399517847,1766428240733,-1000.0,0.00016521,2]
[399517848,1766428240743,-28305.69149594,0.00016544,2]
[399517849,1766428240753,-3292.0,0.00016584,2]
[399517850,1766428240762,-152.04904897,0.00016584,2]
[399517851,1766428240773,-150.0,0.00016699,2]
[399517852,1766428240783,-165.52,0.00016712,2]
[399517853,1766428240793,-562.17614164,0.00016893,2]
[399517854,1766428240803,-794.2825044,0.000169,2]
[399517855,1766428240812,-634.35081497,0.000169,2]
[399517856,1766428240821,-4156.88440742,0.000169,2]
[399517857,1766428240831,-170.60504446,0.000169,2]
[399517858,1766428240840,-616.02656898,0.000169,2]
[399517859,1766428240849,-794.28250439,0.00016926,2]
[399517860,1766428240861,-4156.88440741,0.00016926,2]
[399517861,1766428240870,-170.60504444,0.00016926,2]
[399517862,1766428240879,-1500.0,0.0001693,2]
[399517863,1766428240888,-151.0,0.00016948,2]
[399517864,1766428240899,-500.0,0.0001695,2]
[399517865,1766428240909,-443.68288698,0.00016951,2]
[399517866,1766428240919,-794.28250439,0.00016951,2]
[399517867,1766428240930,-4156.88440741,0.00016951,2]
[399517868,1766428240940,-170.60504444,0.00016951,2]
[399517869,1766428240949,-632.39,0.00016986,2]
[399517870,1766428240959,-1309.06,0.00016986,2]
[399517871,1766428240968,-1656.54303973,0.0001699,2]
[399517872,1766428240977,-1656.54303973,0.0001699,2]
[399517873,1766428240988,-1656.54303973,0.0001699,2]
[399517874,1766428240998,-151.0,0.00016997,2]
[399517875,1766428241007,-300.0,0.00016999,2]
[399517876,1766428241017,-423.34883705,0.00016999,2]
[399517877,1766428241026,-150.0,0.00016999,2]
[399517878,1766428241036,-300.0,0.00016999,2]
[399517879,1766428241047,-300.0,0.00016999,2]
[399517880,1766428241058,-500.0,0.00016999,2]
[399517881,1766428241067,-500.0,0.00016999,2]
[399517882,1766428241076,-500.0,0.00016999,2]
[399517883,1766428241085,-500.0,0.00016999,2]
[399517884,1766428241095,-500.0,0.00016999,2]
[399517885,1766428241104,-500.0,0.00016999,2]
[399517886,1766428241113,-500.0,0.00016999,2]
[399517887,1766428241122,-500.0,0.00016999,2]
[399517888,1766428241132,-3880558.77371654,0.00017,2]
[399517889,1766428241148,-5453670.24881764,0.00017,2]
[399517890,1766428241188,-1710.43792402,0.00017,2]
[399517891,1766428241215,-704.32598107,0.00017,2]
[399517906,1766428242653,-341.41544537,0.00014977,2]
[399517907,1766428242662,-151.0,0.00015547,2]
[399517908,1766428242672,-47.02972216,0.00017,2]
[399517909,1766428242813,-541.90032324,0.00017,2]
[399517910,1766428242876,-48984.73258571,0.00017,2]
[399517911,1766428242887,-845.20416491,0.00017,2]
[399517912,1766428242897,-970.5259832,0.00017,2]
[399517913,1766428242910,-998.9063611,0.00017,2]
[399517914,1766428242932,-2495.26019397,0.00017,2]
[399517920,1766428245544,-18206.77570857,0.00017,2]
[399517921,1766428245556,-42565.22860465,0.00017,2]
[399517922,1766428245575,-2306.28641659,0.00017,2]
[399517923,1766428245822,-37439.29159059,0.00017,2]
[399517925,1766428335130,-10078.3607,0.00013598,2]
[399517926,1766428335152,-300.0,0.00013698,2]
[399517927,1766428335172,-4048.56264106,0.00013699,2]
[399517928,1766428335193,-279.50214594,0.00013699,2]
[399517929,1766428335214,-341.16073738,0.00013699,2]
[399517930,1766428335236,-898.08433789,0.00013699,2]